fUST/lending_fUST_20260329
["ID","MTS","AMOUNT","RATE_DAILY","PERIOD"]
[419021210,1774765846537,-391.3462195,0.00017548,2]
[419021211,1774765846547,-8301.7076597,0.00017728,2]
[419021212,1774765846558,-350.34735365,0.00017835,30]
[419021213,1774765846567,-2150.738,0.00018015,2]
[419021214,1774765846577,-350.34735365,0.00018357,30]
[419021215,1774765846587,-500.0,0.00018359,2]
[419021216,1774765846596,-500.0,0.00018359,2]
[419021217,1774765846606,-500.0,0.00018359,2]
[419021218,1774765846615,-628.49436206,0.00018359,2]
[419021219,1774765846625,-500.0,0.00018359,2]
[419021220,1774765846635,-399.08984982,0.00018359,2]
[419021221,1774765846645,-2261.86295641,0.0001836,2]
[419021222,1774765846660,-20044.76119127,0.0001836,2]
[419021424,1774767044039,-4492.62514569,0.00013159,2]
[419021431,1774767046665,-507.37485431,0.00013159,2]
[419021432,1774767046679,-1000.0,0.00013699,2]
[419021433,1774767046689,-1000.62432752,0.00015201,2]
[419021434,1774767046700,-202.91845989,0.00016765,2]
[419021435,1774767681439,-308.69960812,0.0001,2]
[419021436,1774767681469,-377.50007676,0.0001,2]
[419021460,1774768232369,-122.49992324,0.0001,2]
[419021461,1774768232382,-500.0,0.0001,2]
[419021462,1774768232392,-500.0,0.0001,2]
[419021463,1774768232402,-204.42495156,0.0001,2]
[419021464,1774768232411,-250.0,0.0001,15]
[419021465,1774768232424,-560.0,0.0001,2]
[419021466,1774768232433,-300.0,0.00011847,2]
[419021467,1774768232443,-159.0,0.00011847,2]
[419021468,1774768232453,-300.0,0.00011847,2]
[419021469,1774768232462,-300.0,0.00011848,2]
[419021470,1774768232472,-162.68210269,0.00012917,2]
[419021471,1774768232481,-1000.0,0.00013699,2]
[419021472,1774768232491,-797.08154011,0.00016765,2]
[419021473,1774768232500,-500.0,0.00017155,2]
[419021474,1774768232510,-529.28625937,0.00017155,2]
[419021475,1774768232519,-529.93875802,0.00017155,2]
[419021476,1774768232528,-356.63609363,0.00017155,2]
[419021477,1774768232538,-500.92381026,0.00017523,5]
[419021478,1774768232547,-308.69960812,0.00017539,14]
[419021479,1774768232557,-12894.55681047,0.0001786,2]
[419021480,1774768232568,-252.513281,0.0001786,2]
[419021508,1774768238596,-500.0,0.00017859,2]
[419021510,1774768238606,-501.57491896,0.00017859,2]
[419021513,1774768238616,-132.51453704,0.00017859,2]
[419021537,1774768241289,-367.48546296,0.00017859,2]
[419021538,1774768241299,-494.81956092,0.00017859,2]
[419021539,1774768241308,-933.62939832,0.0001786,2]
[419021540,1774768241354,-484.0,0.0001786,2]
[419021541,1774768242564,-7821.2022502,0.0001786,2]
[419021542,1774768242628,-2969.89313472,0.0001786,2]
[419021554,1774768243914,-2160.0,0.0001786,2]
[419021555,1774768244206,-443.0,0.0001786,2]
[419021559,1774768246709,-1259.54085902,0.0001786,2]
[419021560,1774768246721,-3243.02942361,0.0001786,2]
[419021561,1774768247057,-4041.92265062,0.0001786,2]
[419021647,1774769438767,-180.26717386,0.00012729,2]
[419021649,1774769438777,-180.26717386,0.00012983,7]
[419021651,1774769438787,-180.26717386,0.00013365,14]
[419021653,1774769438796,-1000.0,0.00013699,2]
[419021655,1774769438806,-399.75354257,0.00014982,2]
[419021657,1774769438815,-889.0232842,0.00015599,7]
[419021659,1774769438825,-1609.5342459,0.00015743,2]
[419021661,1774769438835,-393.79703167,0.00017459,2]
[419021664,1774769438845,-405.24263566,0.00017459,2]
[419021666,1774769438855,-405.83279402,0.00017459,2]
[419021668,1774769438871,-500.0,0.00017459,2]
[419021670,1774769438892,-500.0,0.00017459,2]
[419021672,1774769438909,-500.0,0.00017459,2]
[419021674,1774769438919,-500.0,0.00017459,2]
[419021676,1774769438929,-375.84459467,0.00017459,2]
[419021678,1774769438938,-500.0,0.00017459,2]
[419021680,1774769438948,-403.70811789,0.00017459,2]
[419021682,1774769438957,-154282.31472788,0.0001746,2]
[419021684,1774769438968,-1361.65902798,0.0001746,2]
[419021686,1774769438979,-121889.94685355,0.0001746,2]
[419022479,1774769446919,-26117.96819526,0.0001746,2]
[419022537,1774769721090,357.0,7.655e-05,120]
[419022680,1774770642983,-1000.0,0.00013699,2]
[419022682,1774770642993,-1609.5192347,0.00013809,2]
[419022684,1774770643004,-3476.31447182,0.00013909,2]
[419022686,1774770643013,-300.0,0.00014008,2]
[419022688,1774770643023,-3849.19866461,0.00014009,2]
[419022690,1774770643034,-3900.66816095,0.00014109,2]
[419022692,1774770643044,-4967.85124327,0.00014409,2]
[419022694,1774770643055,-327.88265942,0.00016119,2]
[419022696,1774770643065,-590.18878695,0.00016119,2]
[419022698,1774770643074,-201.50577784,0.00016119,2]
[419022700,1774770643084,-362.71040011,0.00016119,2]
[419022702,1774770643094,-5018.1553184,0.00016223,2]
[419022704,1774770643104,-8751.70067165,0.00016223,2]
[419022706,1774770643114,-1000.0,0.00016282,2]
[419022708,1774770643124,-6191.81708721,0.00016495,11]
[419022710,1774770643134,-193.46883679,0.00016967,2]
[419022712,1774770643145,-348.24390622,0.00016967,2]
[419022714,1774770643156,-930.34445647,0.00016994,2]
[419022718,1774770643167,-4593.1756459,0.00017099,2]
[419022720,1774770643177,-275.65792217,0.00017099,2]
[419022722,1774770643188,-1049.22451014,0.00017099,2]
[419022724,1774770643197,-644.81848908,0.00017099,2]
[419022726,1774770643207,-18316.60551274,0.000171,2]
[419022735,1774770643293,-6984.30614213,0.000171,2]
[419022738,1774770643306,-697.31738158,0.000171,2]
[419022747,1774770643391,-19306.9,0.000171,2]
[419022750,1774770643403,-3896.11847603,0.000171,2]
[419023033,1774770646084,-50418.8782737,0.000171,2]
[419023072,1774770646461,-3952.86633803,0.000171,2]
[419023074,1774770646473,-921.64530477,0.000171,2]
[419023105,1774771318598,-278.25760438,0.00013699,2]
[419023106,1774771318621,-721.74239562,0.00013699,2]
[419023107,1774771347744,-278.25760438,0.00013699,2]
[419023164,1774771832047,-1000.0,0.00013699,2]
[419023166,1774771832056,-619.10027773,0.00013947,2]
[419023168,1774771832066,-966.37683977,0.00015936,2]
[419023170,1774771832076,-1637.77388379,0.00015977,2]
[419023173,1774771832085,-1006.5213603,0.00015977,2]
[419023176,1774771832095,-202.0,0.00016117,2]
[419023179,1774771832105,-464.09074737,0.00016118,2]
[419023182,1774771832114,-835.36334527,0.00016118,2]
[419023184,1774771832123,-167.59570995,0.00016118,2]
[419023186,1774771832133,-301.67227791,0.00016118,2]
[419023188,1774771832142,-1485.09039159,0.00016498,2]
[419023190,1774771832151,-536.30627184,0.00016498,2]
[419023192,1774771832160,-300.0,0.00016605,2]
[419023194,1774771832170,-763.0,0.00016606,2]
[419023196,1774771832179,-766.229,0.00016743,2]
[419023198,1774771832189,-186.15207825,0.00016743,2]
[419023200,1774771832199,-150.37163388,0.000168,12]
[419023202,1774771832208,-150.98843552,0.000168,12]
[419023204,1774771832218,-3021.36575965,0.00016815,2]
[419023206,1774771832230,-2751.07633631,0.00016815,2]
[419023345,1774771838259,-1208.7291331,0.00016815,2]
[419023377,1774771841032,-6000.00000163,0.00016815,2]
[419023408,1774771843747,-3492.98449047,0.00016815,2]
[419023435,1774771844000,-3343.35704555,0.00016815,2]
[419023530,1774771846285,-32398.21095497,0.00016815,2]
[419023531,1774771846298,-11827.48380529,0.00016815,2]
[419023601,1774773032155,-457.82611901,0.00012477,2]
[419023737,1774773040840,-4457.52809799,0.00012477,2]
[419023739,1774773040852,-84.645783,0.00012477,2]
[419023742,1774773040862,-215.94839787,0.00012603,2]
[419023744,1774773040872,-215.94839787,0.00012855,7]
[419023746,1774773040881,-215.94839787,0.00013233,14]
[419023748,1774773040891,-1033.05917036,0.00013698,2]
[419023750,1774773040902,-166.94082964,0.00013698,2]
[419023752,1774773040911,-545.27917036,0.00013699,2]
[419024031,1774773043654,-454.72082964,0.00013699,2]
[419024032,1774773043664,-250.0,0.00015404,2]
[419024033,1774773043673,-300.0,0.00015433,2]
[419024034,1774773043683,-300.0,0.00015433,2]
[419024035,1774773043694,-300.0,0.00015433,2]
[419024036,1774773043704,-2318.13328312,0.00015434,2]
[419024037,1774773043714,-837.1405712,0.00015434,2]
[419024038,1774773043724,-1000.0,0.00015711,2]
[419024039,1774773043734,-210.82690945,0.00015757,2]
[419024040,1774773043743,-255.68822186,0.00015757,2]
[419024042,1774773043753,-460.23879934,0.00015757,2]
[419024044,1774773043762,-818.20230994,0.00016475,2]
[419024046,1774773043772,-192.96054551,0.00016514,2]
[419024048,1774773043782,-500.0,0.00016514,2]
[419024050,1774773043792,-154.09101497,0.00016514,2]
[419024052,1774773043802,-500.0,0.00016514,2]
[419024054,1774773043813,-611.97919963,0.00016514,2]
[419024056,1774773043823,-607.89565431,0.00016515,2]
[419024058,1774773043832,-4487.46623818,0.00016515,2]
[419024345,1774773046675,-13700.12653948,0.00016515,2]
[419024355,1774773046769,-1837.85255973,0.00016515,2]
[419024488,1774774232411,-4340.76663059,0.00013027,2]
[419024490,1774774232421,-761.3882068,0.00013538,2]
[419024492,1774774232430,-1000.0,0.00013699,2]
[419024494,1774774232440,-1546.82768036,0.00013809,2]
[419024496,1774774232449,-3715.47273615,0.00014009,2]
[419024498,1774774232459,-3743.5201393,0.00014109,2]
[419024500,1774774232469,-4073.58243207,0.00014209,2]
[419024502,1774774232478,-222.94311289,0.0001425,2]
[419024504,1774774232487,-4789.80182391,0.00014409,2]
[419024506,1774774232497,-393.34651289,0.00015326,2]
[419024508,1774774232507,-708.0237232,0.00015326,2]
[419024510,1774774232516,-379.10894857,0.00015367,2]
[419024512,1774774232526,-1277.16266817,0.00015367,2]
[419024514,1774774232535,-193.03931487,0.00016133,2]
[419024516,1774774232545,-347.47076676,0.00016133,2]
[419024518,1774774232554,-2009.52834056,0.0001635,2]
[419024520,1774774232564,-1258.70884124,0.00016353,2]
[419024522,1774774232573,-151.0,0.000165,2]
[419024524,1774774232582,-151.0,0.000165,2]
[419024526,1774774232592,-151.0,0.000165,2]
[419024529,1774774232601,-1318.0,0.00016515,2]
[419024531,1774774232611,-151.0,0.00016515,2]
[419024533,1774774232621,-151.0,0.00016515,2]
[419024535,1774774232630,-151.0,0.00016515,2]
[419024536,1774774232639,-342.15515532,0.00016515,2]
[419024539,1774774232649,-1494.899293,0.00016548,2]
[419024541,1774774232659,-8154.08321684,0.00016548,2]
[419024543,1774774232669,-1051.37667638,0.00016714,5]
[419024545,1774774232678,-179.10879996,0.00016714,2]
[419024547,1774774232687,-71332.50072732,0.00016715,2]
[419024683,1774774238648,-50583.42031463,0.00016715,2]
[419024684,1774774238660,-5675.334293,0.00016715,2]
[419024727,1774774241221,-1642.63352416,0.00016715,2]
[419024754,1774774246681,-11827.5238468,0.00016715,2]
[419024755,1774774247026,-2189.0,0.00016715,2]
[419024756,1774774881396,-194.53688473,0.0001,2]
[419024757,1774774881424,-261.65846756,0.0001,2]
[419024758,1774774881443,-194.53688473,0.0001,2]
[419024759,1774774881454,-11.50112647,0.0001,2]
[419024760,1774774881464,-250.15734109,0.0001,2]
[419024761,1774774881475,-94.10219662,0.0001,2]
[419024810,1774775432632,-341.005,0.0001,3]
[419024941,1774775441332,-658.995,0.0001,3]
[419024944,1774775441342,-194.53688473,0.00012394,7]
[419024946,1774775441352,-261.65846756,0.00012394,7]
[419024948,1774775441362,-1000.0,0.00013699,2]
[419024950,1774775441371,-194.53688473,0.00014787,7]
[419024952,1774775441381,-261.65846756,0.00014787,7]
[419024954,1774775441390,-617.10808177,0.00015183,2]
[419024956,1774775441399,-1964.76583188,0.00015255,2]
[419024958,1774775441409,-567.1972151,0.00016057,2]
[419024960,1774775441418,-612.983,0.00016283,2]
[419024962,1774775441427,-2646.37745694,0.00016415,2]
[419025388,1774775450950,-3725.83640187,0.00016415,2]
[419025605,1774776632646,-151.0,0.0001338,5]
[419025607,1774776632655,-1000.0,0.00013699,2]
[419025609,1774776632664,-126.18963775,0.00013809,2]
[419025611,1774776632675,-679.41,0.00013809,2]
[419025726,1774776638919,-422.3121773,0.00013809,2]
[419025727,1774776638930,-2718.35294257,0.00013909,2]
[419025728,1774776638940,-300.0,0.00014008,2]
[419025729,1774776638950,-300.0,0.00014008,2]
[419025730,1774776638960,-857.0,0.00014008,2]
[419025731,1774776638970,-3016.18960213,0.00014009,2]
[419025732,1774776638980,-3058.30840406,0.00014109,2]
[419025733,1774776638990,-3314.02626175,0.00014209,2]
[419025734,1774776639000,-1000.0,0.00015306,2]
[419025735,1774776639010,-494.242863,0.00015762,2]
[419025736,1774776639019,-490.386,0.00015891,2]
[419025737,1774776639029,-3738.88402579,0.00015954,2]
[419026031,1774776644369,-1599.84948181,0.00015954,2]
[419026032,1774776644706,-3640.41499338,0.00015954,2]
[419026033,1774776644717,-9817.95546473,0.00016053,2]
[419026034,1774776644728,-1700000.0,0.00016115,2]
[419026035,1774776644741,-2012630.81985344,0.00016115,2]
[419026036,1774776644752,-500.54244637,0.00016173,2]
[419026037,1774776644764,-500.0,0.00016173,2]
[419026038,1774776644776,-500.95495457,0.00016173,2]
[419026039,1774776644788,-500.0,0.00016173,2]
[419026040,1774776644800,-500.0,0.00016173,2]
[419026041,1774776644813,-500.0,0.00016173,2]
[419026042,1774776644824,-1404.46,0.00016205,3]
[419026043,1774776644835,-702.23,0.00016205,3]
[419026044,1774776644848,-351.11,0.00016205,3]
[419026045,1774776644861,-175.56,0.00016205,3]
[419026046,1774776644872,-526.7,0.00016205,3]
[419026047,1774776644883,-151.0,0.00016215,2]
[419026048,1774776644894,-151.0,0.00016215,2]
[419026049,1774776644905,-151.0,0.00016215,2]
[419026050,1774776644917,-151.0,0.00016215,2]
[419026051,1774776644928,-151.0,0.00016215,2]
[419026052,1774776644939,-261.021922,0.00016215,2]
[419026053,1774776644949,-505.70191305,0.00016273,2]
[419026054,1774776644960,-151.0,0.000163,2]
[419026055,1774776644970,-444.85366821,0.00016373,2]
[419026056,1774776644980,-494.242863,0.00016425,2]
[419026057,1774776644991,-151.0,0.00016548,2]
[419026058,1774776645003,-151.0,0.00016548,2]
[419026059,1774776645014,-1000.0,0.00016715,2]
[419026060,1774776645025,-1004.96443852,0.00016721,2]
[419026061,1774776645037,-1021.08804885,0.00016721,2]
[419026062,1774776645048,-437.00776898,0.00016804,2]
[419026063,1774776645059,-523.82959336,0.00016804,2]
[419026064,1774776645071,-164.06885719,0.00016804,2]
[419026065,1774776645082,-2150.738,0.00016804,2]
[419026066,1774776645093,-82451.01424145,0.00016815,2]
[419026067,1774776645104,-151.0,0.00016815,2]
[419026068,1774776645114,-151.0,0.00016815,2]
[419026069,1774776645125,-494.242863,0.00017089,2]
[419026070,1774776645137,-596340.09574953,0.000171,2]
[419026076,1774776646970,-7667.65646387,0.000171,2]
[419026077,1774776738063,-364.84140219,0.00015176,14]
[419026078,1774776738123,-73.66270235,0.00015954,2]
[419026486,1774777843667,-364.84140219,0.00013365,14]
[419026487,1774777843677,-1000.0,0.00013699,2]
[419026488,1774777843688,-928.89804449,0.00015954,2]
[419026489,1774777843698,-392.309,0.00016562,2]
[419026490,1774777843709,-300.0,0.00016799,2]
[419026491,1774777843719,-10333.95155333,0.000168,2]
[419026500,1774777846506,-1544.58914564,0.000168,2]
[419026514,1774778480964,-325.17070286,0.0001,2]
[419026515,1774778480993,-162.5853514,0.0001,2]
[419026516,1774778481020,-560.0,0.0001,2]
[419026517,1774778497728,-325.17070286,0.00011194,2]
[419026518,1774778514500,-325.17070286,0.00012388,7]
[419026519,1774778514529,-325.17070286,0.00013581,7]
[419026520,1774778514555,-447.23621754,0.00013699,2]
[419026521,1774778514618,-552.76378246,0.00013699,2]
[419026522,1774778543595,-422.74832612,0.00014412,2]
[419026523,1774778543618,-577.25167388,0.00014412,2]
[419026524,1774778572810,-97.57762326,0.00014775,7]
[419026525,1774778572837,-227.5930796,0.00014775,7]
[419027167,1774780232249,-1000.0,0.00013699,2]
[419027169,1774780232259,-166.66666668,0.00013709,2]
[419027171,1774780232269,-864.60333332,0.00013809,2]
[419027447,1774780245383,-547.38468988,0.00013809,2]
[419027448,1774780245395,-3112.27658858,0.00013909,2]
[419027449,1774780245405,-300.0,0.00014008,2]
[419027450,1774780245415,-3459.37430801,0.00014009,2]
[419027451,1774780245424,-166.66666666,0.00014009,2]
[419027452,1774780245434,-4153.56974703,0.00014309,2]
[419027453,1774780245445,-166.66666666,0.00014309,2]
[419027454,1774780245455,-4764.98013053,0.00014409,2]
[419027455,1774780245464,-247.121431,0.00015425,2]
[419027456,1774780245474,-325.17070286,0.00015969,14]
[419027457,1774780245484,-500.0,0.00016,2]
[419027458,1774780245493,-247.121431,0.00016074,2]
[419027459,1774780245504,-2150.738,0.00016244,2]
[419027460,1774780245514,-47708.92963778,0.000163,2]
[419027462,1774780246705,-6324.14371656,0.000163,2]
[419027463,1774780246985,-749.892,0.000163,2]
[419027495,1774781432522,-608.24692022,0.00013699,2]
[419027771,1774781446704,-391.75307978,0.00013699,2]
[419027772,1774781446715,-252.06190725,0.00014935,2]
[419027781,1774782118909,-1000.0,0.00013699,2]
[419027782,1774782135620,-454.8596836,0.00014723,2]
[419027783,1774782135649,-747.93809275,0.00014935,2]
[419027784,1774782135676,-168.2545694,0.00015251,2]
[419027785,1774782135696,-313.847,0.00015484,2]
[419027786,1774782135706,-141.0126836,0.000158,2]
[419027787,1774782135718,-406.09340527,0.000158,2]
[419027788,1774782135728,-341.84468748,0.000158,2]
[419027789,1774782135740,-168.2545694,0.000158,2]
[419027790,1774782135751,-278.3906159,0.000158,2]
[419027791,1774782164772,-1000.0,0.000158,2]
[419027839,1774782632584,-1000.0,0.00013699,2]
[419027841,1774782632593,-1173.11391504,0.000157,2]
[419027844,1774782632605,-339.17719896,0.000157,2]
[419027847,1774782632636,-3341.4329392,0.000157,2]
[419027849,1774782632648,-3018.89999998,0.000157,2]
[419027852,1774782632661,-2005.425975,0.000157,2]
[419027854,1774782632672,-1337.4384,0.000157,2]
[419027984,1774782641475,-6681.0,0.000157,2]
[419027985,1774782641486,-4010.0,0.000157,2]
[419027989,1774782641723,-85639.92484976,0.000157,2]
[419027990,1774782641827,-7738.02023341,0.000157,2]
[419027991,1774782641839,-1342.7,0.000157,2]
[419028013,1774782644354,-674.39030209,0.000157,2]
[419028035,1774782647148,-7532.78488206,0.000157,2]
[419028036,1774782647161,-1409.51376,0.000157,2]
[419028611,1774783831872,-328.93909042,0.00013365,14]
[419028612,1774783831882,-65.56549074,0.00013699,2]
[419028652,1774783838058,-934.43450926,0.00013699,2]
[419028653,1774783838068,-251.078,0.00015288,2]
[419028654,1774783838077,-877.78,0.0001559,3]
[419028655,1774783838087,-160.0,0.00016,5]
[419028656,1774783838097,-151.7,0.00016,7]
[419028657,1774783838107,-1000.0,0.00016022,2]
[419028658,1774783838116,-254.451881,0.00016284,2]
[419028659,1774783838126,-2150.738,0.00016714,2]
[419028660,1774783838135,-642.0,0.00016724,2]
[419028661,1774783838144,-1402.0,0.00016724,2]
[419028662,1774783838154,-1127.775,0.00016724,2]
[419028663,1774783838163,-650.754,0.00016724,2]
[419028664,1774783838173,-184.0,0.00016724,2]
[419028665,1774783838183,-439.0,0.00016724,2]
[419028666,1774783838192,-1297.86647339,0.00016758,2]
[419028667,1774783838202,-1755.56,0.0001696,3]
[419028668,1774783838211,-254.451881,0.0001697,2]
[419028669,1774783838220,-325.17070286,0.00017163,14]
[419028670,1774783838230,-3928.18325252,0.0001717,2]
[419028671,1774783838239,-194.53688473,0.00017181,14]
[419028672,1774783838248,-261.65846756,0.00017181,14]
[419028673,1774783838258,-2230.315306,0.00017262,2]
[419028674,1774783838268,-600.0,0.00017426,2]
[419028675,1774783838278,-1000.0,0.00017426,2]
[419028676,1774783838288,-1000.0,0.00017523,2]
[419028677,1774783838297,-1000.0,0.00017523,2]
[419028678,1774783838307,-159.0,0.000176,3]
[419028679,1774783838317,-254.451881,0.00017655,2]
[419028680,1774783838326,-2312.83697232,0.0001781,2]
[419028681,1774783838336,-254.451881,0.00018341,2]
[419028682,1774783838345,-325.17070286,0.00018356,14]
[419028683,1774783838355,-2398.4119403,0.00018358,2]
[419028684,1774783838364,-500.0,0.00018534,2]
[419028685,1774783838374,-151.0,0.00018642,2]
[419028686,1774783838384,-1714606.31291184,0.00018784,2]
[419028687,1774783838396,-1279.84607194,0.00018784,2]
[419028741,1774783843334,-492.39548001,0.0001871,2]
[419028742,1774783843344,-2833.24439825,0.00018784,2]
[419028743,1774783843357,-1785.24248734,0.00018784,2]
[419028744,1774783843601,-19999.9999993,0.00018784,2]
[419028818,1774783846102,-1335.66844,0.00018784,2]
[419028819,1774783846158,-33250.00000001,0.00018784,2]
[419028845,1774785032018,-1000.0,0.00013699,2]
[419028847,1774785032028,-200.474,0.00016766,2]
[419028849,1774785032038,-195.166,0.00016766,2]
[419028852,1774785032048,-439.0,0.00016766,2]
[419028854,1774785032059,-159.76000001,0.00016766,2]
[419028856,1774785032069,-24.23999999,0.00016766,2]
[419028859,1774785032079,-300.0,0.00017876,2]
[419028862,1774785032088,-1341.11000001,0.00017877,2]
[419028940,1774785038235,-669.08,0.00017877,2]
[419028996,1774785040757,-6247.34273199,0.00017877,2]
[419028998,1774785040767,-443.155932,0.00018496,2]
[419029000,1774785040777,-130378.51367338,0.00018584,2]
[419029273,1774785043540,-886.37577283,0.00018584,2]
[419029296,1774785043752,-388.58423484,0.00018584,2]
[419029299,1774785043764,-289.03631044,0.00018584,2]
[419029526,1774785046426,-11827.56630962,0.00018584,2]
[419029532,1774785046479,-13186.4131988,0.00018584,2]
[419029539,1774785046533,-4149.04977456,0.00018584,2]
[419029719,1774785722933,-216.8948103,0.00013699,2]
[419029734,1774786232169,-1000.0,0.00013699,2]
[419029735,1774786232179,-184.0,0.0001635,2]
[419029736,1774786232188,-439.0,0.0001635,2]
[419029737,1774786232198,-500.0,0.00017536,2]
[419029738,1774786232208,-300.0,0.00017536,2]
[419029739,1774786232217,-5470.84257172,0.00017537,2]
[419029740,1774786232229,-893.10945299,0.00017537,2]
[419030081,1774786243706,-1411.56390922,0.00017537,2]
[419030082,1774786243921,-3335.00000001,0.00017537,2]
[419030091,1774786246604,-1449.1617561,0.00017537,2]
[419030092,1774786246658,-3041.05135279,0.00017537,2]
[419030203,1774787432339,-250.78898477,0.0001,2]
[419030204,1774787432350,-170.0,0.00010192,2]
[419030206,1774787432360,-203.0,0.00010192,2]
[419030208,1774787432370,-170.0,0.00011192,2]
[419030210,1774787432381,-203.0,0.00011192,2]
[419030212,1774787432391,-170.0,0.00012192,2]
[419030214,1774787432401,-203.0,0.00012192,2]
[419030216,1774787432411,-170.0,0.00013192,2]
[419030218,1774787432421,-203.0,0.00013192,2]
[419030220,1774787432431,-202.83486981,0.00013365,14]
[419030222,1774787432443,-542.49541314,0.00013443,2]
[419030224,1774787432453,-300.0,0.00013698,2]
[419030226,1774787432463,-1000.0,0.00013699,2]
[419030228,1774787432473,-1500.0,0.00013699,2]
[419030230,1774787432482,-1500.0,0.00013699,2]
[419030232,1774787432492,-1500.0,0.00013699,2]
[419030235,1774787432502,-1500.0,0.00013699,2]
[419030237,1774787432512,-1500.0,0.00013699,2]
[419030238,1774787432521,-1500.0,0.00013699,2]
[419030240,1774787432531,-1500.0,0.00013699,2]
[419030242,1774787432540,-1500.0,0.00013699,2]
[419030245,1774787432550,-1500.0,0.00013699,2]
[419030247,1774787432560,-1500.0,0.00013699,2]
[419030249,1774787432569,-2256.463019,0.00013699,2]
[419030251,1774787432579,-503.71111093,0.000137,2]
[419030253,1774787432590,-1000.0,0.00013989,2]
[419030255,1774787432599,-500.0,0.0001415,2]
[419030257,1774787432609,-170.0,0.00014192,2]
[419030259,1774787432618,-203.0,0.00014192,2]
[419030261,1774787432628,-287.38,0.0001446,2]
[419030263,1774787432638,-500.0,0.00014895,2]
[419030265,1774787432648,-175.81091015,0.00015192,2]
[419030267,1774787432658,-206.08193234,0.00015192,2]
[419030269,1774787432667,-500.0,0.00015309,2]
[419030271,1774787432677,-500.0,0.00015309,2]
[419030273,1774787432686,-5945.64135149,0.00015309,2]
[419030275,1774787432695,-5000.0,0.00015309,2]
[419030277,1774787432704,-5000.0,0.00015309,2]
[419030280,1774787432715,-5000.0,0.00015309,2]
[419030282,1774787432724,-5000.0,0.00015309,2]
[419030284,1774787432733,-500.0,0.0001564,2]
[419030286,1774787432743,-500.0,0.00016422,2]
[419030288,1774787432752,-180.91782468,0.00016633,2]
[419030290,1774787432762,-2198.0,0.00016734,2]
[419030292,1774787432771,-1402.0,0.00016734,2]
[419030294,1774787432780,-439.0,0.00016734,2]
[419030296,1774787432790,-736.0,0.00016734,2]
[419030298,1774787432800,-184.0,0.00016734,2]
[419030300,1774787432810,-228.10530171,0.00017381,2]
[419030302,1774787432819,-537.6845,0.00017425,2]
[419030304,1774787432829,-500.0,0.00017425,2]
[419030306,1774787432838,-2150.738,0.00017425,2]
[419030308,1774787432848,-500.0,0.00017425,2]
[419030310,1774787432857,-187.72026209,0.00017426,2]
[419030312,1774787432867,-7719.62651996,0.00017436,2]
[419030314,1774787432879,-1012.27440141,0.00017436,2]
[419030316,1774787432891,-1093.98275846,0.00017436,2]
[419030318,1774787432903,-2822.73250242,0.00017436,2]
[419030320,1774787432914,-3802.36708602,0.00017436,2]
[419030322,1774787432929,-1322.3543261,0.00017436,2]
[419030323,1774787432939,-24104.14395032,0.00017436,2]
[419030325,1774787432951,-516.82151438,0.00017436,2]
[419030328,1774787432974,-2343.0,0.00017436,2]
[419030330,1774787432986,-1004.47234941,0.00017436,2]
[419030333,1774787432997,-440.41335325,0.00017436,2]
[419030335,1774787433010,-2094.96246121,0.00017436,2]
[419030337,1774787433022,-26683.9467211,0.00017436,2]
[419030339,1774787433031,-557.5788265,0.0001748,2]
[419030341,1774787433041,-5000.0,0.00017535,2]
[419030343,1774787433051,-578.20924308,0.00017535,2]
[419030345,1774787433061,-573.38384687,0.00017536,2]
[419030347,1774787433070,-1343.54,0.00017536,2]
[419030349,1774787433079,-1510.28,0.00017536,2]
[419030351,1774787433088,-516.89,0.00017536,2]
[419030353,1774787433098,-500.0,0.00017536,2]
[419030365,1774787433188,-1557.76691662,0.00017536,2]
[419030368,1774787433226,-543.51308338,0.00017536,2]
[419030370,1774787433236,-680.75,0.00017536,2]
[419030371,1774787433246,-214.99072783,0.00017536,2]
[419030374,1774787433256,-501.21013425,0.00017536,2]